fUST/lending_fUST_20250720
["ID","MTS","AMOUNT","RATE_DAILY","PERIOD"]
[373421927,1752997839254,-460.0,0.00017523,2]
[373421929,1752997839263,-460.0,0.00017523,2]
[373421931,1752997839277,-460.0,0.00017523,2]
[373421933,1752997839286,-460.0,0.00017523,2]
[373421935,1752997839295,-460.0,0.00017523,2]
[373421948,1752997839404,-460.0,0.00017523,2]
[373421950,1752997839414,-460.0,0.00017523,2]
[373421952,1752997839423,-460.0,0.00017523,2]
[373421954,1752997839432,-460.0,0.00017523,2]
[373421956,1752997839441,-460.0,0.00017523,2]
[373421958,1752997839450,-461.35,0.00017523,2]
[373421960,1752997839460,-460.0,0.00017523,2]
[373421961,1752997839469,-460.0,0.00017523,2]
[373421963,1752997839478,-460.0,0.00017523,2]
[373421965,1752997839488,-460.0,0.00017523,2]
[373421967,1752997839497,-460.0,0.00017523,2]
[373421970,1752997839506,-460.0,0.00017523,2]
[373421971,1752997839516,-460.0,0.00017523,2]
[373421974,1752997839525,-460.0,0.00017523,2]
[373421976,1752997839535,-460.0,0.00017523,2]
[373421978,1752997839544,-460.0,0.00017523,2]
[373421980,1752997839553,-460.0,0.00017523,2]
[373421982,1752997839562,-460.0,0.00017523,2]
[373421984,1752997839572,-516.21,0.00017523,2]
[373421986,1752997839581,-460.0,0.00017523,2]
[373421988,1752997839590,-460.0,0.00017523,2]
[373421990,1752997839599,-460.0,0.00017523,2]
[373421991,1752997839608,-460.0,0.00017523,2]
[373421993,1752997839617,-460.0,0.00017523,2]
[373421995,1752997839626,-460.0,0.00017523,2]
[373421997,1752997839635,-460.0,0.00017523,2]
[373421999,1752997839645,-460.0,0.00017523,2]
[373422001,1752997839655,-555.06,0.00017523,2]
[373422002,1752997839664,-460.0,0.00017523,2]
[373422003,1752997839674,-460.0,0.00017523,2]
[373422004,1752997839683,-460.0,0.00017523,2]
[373422005,1752997839692,-460.0,0.00017523,2]
[373422007,1752997839701,-460.0,0.00017523,2]
[373422009,1752997839711,-460.0,0.00017523,2]
[373422011,1752997839720,-697.75,0.00017523,2]
[373422013,1752997839729,-646.67,0.00017523,2]
[373422015,1752997839739,-460.0,0.00017523,2]
[373422017,1752997839748,-460.0,0.00017523,2]
[373422019,1752997839758,-460.0,0.00017523,2]
[373422021,1752997839767,-460.0,0.00017523,2]
[373422023,1752997839776,-460.0,0.00017523,2]
[373422025,1752997839785,-460.0,0.00017523,2]
[373422027,1752997839799,-460.0,0.00017523,2]
[373422029,1752997839809,-460.0,0.00017523,2]
[373422031,1752997839819,-460.0,0.00017523,2]
[373422033,1752997839828,-460.0,0.00017523,2]
[373422035,1752997839838,-460.0,0.00017523,2]
[373422037,1752997839847,-460.0,0.00017523,2]
[373422038,1752997839856,-460.0,0.00017523,2]
[373422039,1752997839866,-460.0,0.00017524,2]
[373422040,1752997839877,-3364.79,0.00017524,2]
[373422041,1752997839887,-460.0,0.00017525,2]
[373422042,1752997839897,-570.02,0.00017525,2]
[373422043,1752997839907,-1615.83,0.00017525,2]
[373422044,1752997839916,-460.0,0.00017525,2]
[373422045,1752997839925,-1249.66,0.00017525,2]
[373422046,1752997839935,-3607.11,0.00017525,2]
[373422047,1752997839944,-1033.91,0.00017525,2]
[373422048,1752997839953,-460.0,0.00017525,2]
[373422049,1752997839963,-501.76289258,0.00017573,2]
[373422050,1752997839972,-503.99302055,0.00017573,2]
[373422051,1752997839981,-502.75912573,0.00017573,2]
[373422052,1752997839990,-500.0,0.00017573,2]
[373422053,1752997839999,-152.23927658,0.00017573,2]
[373422054,1752997840008,-500.0,0.00017573,2]
[373422056,1752997840018,-3820.84510486,0.00017647,2]
[373422057,1752997840027,-2140.32196408,0.00017768,2]
[373422058,1752997840036,-500.0,0.00017773,2]
[373422059,1752997840045,-500.0,0.00017773,2]
[373422060,1752997840055,-501.51898008,0.00017773,2]
[373422061,1752997840065,-460.0,0.00017795,2]
[373422062,1752997840074,-461.03816796,0.00017795,2]
[373422063,1752997840084,-397.26525267,0.00017795,2]
[373422064,1752997840093,-460.0,0.00017795,2]
[373422065,1752997840102,-1996.24,0.00017795,2]
[373422066,1752997840111,-460.0,0.00017795,2]
[373422067,1752997840120,-597.5,0.00017795,2]
[373422068,1752997840129,-460.0,0.00017795,2]
[373422069,1752997840139,-460.0,0.00017795,2]
[373422070,1752997840148,-465.31300322,0.00017795,2]
[373422071,1752997840157,-1697.1,0.00017795,2]
[373422072,1752997840167,-460.0,0.00017795,2]
[373422073,1752997840176,-56.03547247,0.00017795,2]
[373422079,1752997840652,-460.0,0.00017246,2]
[373422080,1752997840663,-460.0,0.00017247,2]
[373422081,1752997840672,-403.96452753,0.00017795,2]
[373422082,1752997840682,-460.0,0.00017795,2]
[373422083,1752997840691,-460.0,0.00017795,2]
[373422084,1752997840700,-836.02,0.00017795,2]
[373422085,1752997840710,-460.0,0.00017795,2]
[373422086,1752997840719,-460.0,0.00017795,2]
[373422087,1752997840729,-460.0,0.00017795,2]
[373422088,1752997840738,-1367.43,0.00017795,2]
[373422089,1752997840748,-460.0,0.00017795,2]
[373422090,1752997840758,-460.0,0.00017795,2]
[373422091,1752997840767,-460.0,0.00017795,2]
[373422092,1752997840778,-502.86,0.00017795,2]
[373422093,1752997840790,-460.0,0.00017795,2]
[373422094,1752997840801,-460.0,0.00017796,2]
[373422095,1752997840815,-460.93725366,0.00017796,2]
[373422096,1752997840824,-460.0,0.00017796,2]
[373422097,1752997840835,-460.0,0.00017796,2]
[373422098,1752997840844,-460.0,0.00017796,2]
[373422099,1752997840853,-460.0,0.00017796,2]
[373422100,1752997840863,-460.0,0.00017796,2]
[373422101,1752997840873,-460.0,0.00017796,2]
[373422102,1752997840883,-460.0,0.00017796,2]
[373422103,1752997840893,-543.40550302,0.00017796,2]
[373422104,1752997840902,-460.0,0.00017796,2]
[373422105,1752997840912,-460.0,0.00017796,2]
[373422106,1752997840921,-460.0,0.00017796,2]
[373422107,1752997840930,-460.0,0.00017796,2]
[373422108,1752997840940,-243.61936132,0.00017796,2]
[373422109,1752997840950,-460.0,0.00017796,2]
[373422110,1752997840960,-460.0,0.00017796,2]
[373422111,1752997840970,-460.0,0.00017796,2]
[373422112,1752997840979,-460.0,0.00017796,2]
[373422113,1752997840989,-460.0,0.00017796,2]
[373422114,1752997840998,-460.0,0.00017796,2]
[373422115,1752997841008,-460.0,0.00017796,2]
[373422116,1752997841018,-250.76335442,0.00017796,2]
[373422117,1752997841030,-209.23664558,0.00017796,2]
[373422118,1752997841039,-460.0,0.00017796,2]
[373422119,1752997841048,-100.39724742,0.00017796,2]
[373422120,1752997841064,-359.60275258,0.00017796,2]
[373422121,1752997841073,-460.0,0.00017796,2]
[373422122,1752997841083,-3896.49,0.00017796,2]
[373422123,1752997841093,-460.0,0.00017796,2]
[373422124,1752997841102,-460.0,0.00017796,2]
[373422126,1752997841112,-460.0,0.00017796,2]
[373422127,1752997841121,-460.0,0.00017796,2]
[373422128,1752997841130,-460.0,0.00017796,2]
[373422129,1752997841139,-460.0,0.00017796,2]
[373422131,1752997841148,-460.0,0.00017796,2]
[373422132,1752997841157,-460.0,0.00017796,2]
[373422133,1752997841167,-289.62,0.00017796,2]
[373422134,1752997841176,-460.0,0.00017796,2]
[373422135,1752997841185,-460.0,0.00017796,2]
[373422136,1752997841194,-460.0,0.00017796,2]
[373422137,1752997841203,-460.0,0.00017796,2]
[373422138,1752997841213,-460.0,0.00017796,2]
[373422139,1752997841222,-460.0,0.00017796,2]
[373422140,1752997841231,-460.0,0.00017796,2]
[373422141,1752997841240,-460.0,0.00017796,2]
[373422142,1752997841249,-460.0,0.00017796,2]
[373422143,1752997841258,-460.0,0.00017796,2]
[373422144,1752997841268,-534.57,0.00017796,2]
[373422145,1752997841277,-460.0,0.00017796,2]
[373422146,1752997841285,-460.0,0.00017796,2]
[373422147,1752997841295,-1466.27,0.00017796,2]
[373422148,1752997841304,-460.0,0.00017796,2]
[373422149,1752997841313,-408.35915704,0.00017796,2]
[373422150,1752997841324,-172.34137899,0.00017796,2]
[373422151,1752997841333,-460.0,0.00017796,2]
[373422152,1752997841342,-460.0,0.00017796,2]
[373422153,1752997841351,-460.0,0.00017796,2]
[373422154,1752997841360,-460.0,0.00017796,2]
[373422155,1752997841369,-566.23,0.00017796,2]
[373422156,1752997841378,-460.0,0.00017796,2]
[373422157,1752997841387,-460.0,0.00017796,2]
[373422158,1752997841396,-869.8,0.00017796,2]
[373422159,1752997841405,-460.0,0.00017796,2]
[373422160,1752997841414,-460.0,0.00017796,2]
[373422161,1752997841423,-460.0,0.00017796,2]
[373422162,1752997841432,-460.0,0.00017796,2]
[373422163,1752997841441,-460.0,0.00017796,2]
[373422164,1752997841450,-502.1114801,0.00017796,2]
[373422165,1752997841459,-460.0,0.00017796,2]
[373422166,1752997841467,-1345.67,0.00017796,2]
[373422167,1752997841476,-460.0,0.00017796,2]
[373422168,1752997841485,-460.0,0.00017796,2]
[373422169,1752997841494,-460.0,0.00017796,2]
[373422170,1752997841503,-460.0,0.00017796,2]
[373422171,1752997841512,-460.0,0.00017796,2]
[373422172,1752997841520,-460.0,0.00017796,2]
[373422173,1752997841527,-460.0,0.00017796,2]
[373422174,1752997841533,-460.0,0.00017796,2]
[373422175,1752997841542,-460.0,0.00017796,2]
[373422176,1752997841551,-460.0,0.00017796,2]
[373422177,1752997841563,-460.0,0.00017796,2]
[373422178,1752997841572,-460.0,0.00017796,2]
[373422179,1752997841582,-460.0,0.00017796,2]
[373422180,1752997841591,-467.52,0.00017796,2]
[373422181,1752997841602,-460.0,0.00017796,2]
[373422182,1752997841612,-210.006976,0.00017797,2]
[373422184,1752997841622,-153.40204311,0.00017797,2]
[373422185,1752997841632,-460.0,0.00017797,2]
[373422186,1752997841642,-460.0,0.00017797,2]
[373422187,1752997841652,-460.0,0.00017797,2]
[373422188,1752997841662,-460.0,0.00017797,2]
[373422189,1752997841672,-460.0,0.00017797,2]
[373422190,1752997841682,-460.0,0.00017797,2]
[373422191,1752997841691,-600.35224083,0.00017797,2]
[373422192,1752997841701,-460.0,0.00017797,2]
[373422193,1752997841711,-460.0,0.00017797,2]
[373422194,1752997841721,-461.35,0.00017797,2]
[373422195,1752997841731,-460.0,0.00017797,2]
[373422196,1752997841748,-460.0,0.00017797,2]
[373422197,1752997841916,-460.0,0.00017797,2]
[373422198,1752997841928,-460.0,0.00017797,2]
[373422199,1752997841938,-407.08,0.00017797,2]
[373422200,1752997841949,-460.0,0.00017797,2]
[373422201,1752997841959,-500.46,0.00017797,2]
[373422202,1752997841969,-516.21,0.00017797,2]
[373422204,1752997841979,-460.0,0.00017797,2]
[373422205,1752997841989,-460.0,0.00017797,2]
[373422206,1752997841999,-460.0,0.00017797,2]
[373422207,1752997842008,-428.81746187,0.00017797,2]
[373422208,1752997842018,-460.0,0.00017797,2]
[373422209,1752997842029,-460.0,0.00017797,2]
[373422210,1752997842039,-460.0,0.00017797,2]
[373422211,1752997842048,-460.0,0.00017797,2]
[373422212,1752997842062,-460.0,0.00017797,2]
[373422213,1752997842072,-460.0,0.00017797,2]
[373422214,1752997842082,-460.0,0.00017797,2]
[373422215,1752997842092,-460.0,0.00017797,2]
[373422216,1752997842103,-460.0,0.00017797,2]
[373422217,1752997842112,-697.75,0.00017797,2]
[373422218,1752997842122,-646.67,0.00017797,2]
[373422219,1752997842132,-460.0,0.00017797,2]
[373422220,1752997842142,-460.0,0.00017797,2]
[373422221,1752997842152,-460.0,0.00017797,2]
[373422222,1752997842162,-329.44785826,0.00017797,2]
[373422223,1752997842172,-547.0,0.00017797,2]
[373422224,1752997842182,-460.0,0.00017797,2]
[373422225,1752997842192,-156.83496223,0.00017797,2]
[373422226,1752997842202,-460.0,0.00017797,2]
[373422227,1752997842212,-460.0,0.00017797,2]
[373422228,1752997842223,-460.0,0.00017798,2]
[373422229,1752997842232,-3364.79,0.00017798,2]
[373422230,1752997842242,-460.0,0.00017799,2]
[373422231,1752997842251,-570.02,0.00017799,2]
[373422232,1752997842260,-1615.83,0.00017799,2]
[373422233,1752997842270,-460.0,0.00017799,2]
[373422234,1752997842280,-1249.66,0.00017799,2]
[373422235,1752997842290,-3607.11,0.00017799,2]
[373422236,1752997842299,-1033.91,0.00017799,2]
[373422237,1752997842314,-460.0,0.00017799,2]
[373422238,1752997842324,-3081.31997869,0.000179,2]
[373422239,1752997842334,-41536.79523217,0.00018,2]
[373422240,1752997842348,-3708.97416343,0.00018,2]
[373422241,1752997842357,-1996.24,0.00018069,2]
[373422242,1752997842367,-317.48452892,0.00018069,2]
[373422243,1752997842379,-142.51547108,0.00018069,2]
[373422244,1752997842389,-329.02991601,0.00018069,2]
[373422245,1752997842400,-268.47008399,0.00018069,2]
[373422246,1752997842410,-104.25241332,0.00018069,2]
[373422247,1752997842422,-355.74758668,0.00018069,2]
[373422248,1752997842432,-460.0,0.00018069,2]
[373422249,1752997842442,-1697.1,0.00018069,2]
[373422250,1752997842452,-460.0,0.00018069,2]
[373422251,1752997842462,-460.0,0.00018069,2]
[373422252,1752997842471,-460.0,0.00018069,2]
[373422253,1752997842481,-836.02,0.00018069,2]
[373422254,1752997842490,-460.0,0.00018069,2]
[373422255,1752997842500,-460.0,0.00018069,2]
[373422256,1752997842509,-460.0,0.00018069,2]
[373422257,1752997842519,-1367.43,0.00018069,2]
[373422258,1752997842528,-460.0,0.00018069,2]
[373422259,1752997842538,-460.0,0.00018069,2]
[373422260,1752997842548,-460.0,0.00018069,2]
[373422261,1752997842559,-502.86,0.00018069,2]
[373422262,1752997842569,-460.0,0.0001807,2]
[373422263,1752997842579,-460.0,0.0001807,2]
[373422264,1752997842588,-460.0,0.0001807,2]
[373422265,1752997842598,-460.0,0.0001807,2]
[373422266,1752997842607,-460.0,0.0001807,2]
[373422267,1752997842617,-460.0,0.0001807,2]
[373422268,1752997842627,-3896.49,0.0001807,2]
[373422269,1752997842636,-460.0,0.0001807,2]
[373422270,1752997842647,-460.0,0.0001807,2]
[373422271,1752997842656,-460.0,0.0001807,2]
[373422272,1752997842666,-460.0,0.0001807,2]
[373422273,1752997842675,-460.0,0.0001807,2]
[373422274,1752997842685,-460.0,0.0001807,2]
[373422275,1752997842695,-460.0,0.0001807,2]
[373422276,1752997842704,-460.0,0.0001807,2]
[373422277,1752997842714,-460.0,0.0001807,2]
[373422278,1752997842723,-460.0,0.0001807,2]
[373422279,1752997842733,-460.0,0.0001807,2]
[373422280,1752997842743,-460.0,0.0001807,2]
[373422281,1752997842752,-460.0,0.0001807,2]
[373422282,1752997842762,-460.0,0.0001807,2]
[373422283,1752997842771,-460.0,0.0001807,2]
[373422284,1752997842784,-534.57,0.0001807,2]
[373422285,1752997842796,-460.0,0.0001807,2]
[373422286,1752997842807,-460.0,0.0001807,2]
[373422287,1752997842816,-1466.27,0.0001807,2]
[373422288,1752997842826,-460.0,0.0001807,2]
[373422289,1752997842837,-460.0,0.0001807,2]
[373422290,1752997842847,-460.0,0.0001807,2]
[373422291,1752997842856,-460.0,0.0001807,2]
[373422292,1752997842867,-460.0,0.0001807,2]
[373422293,1752997842877,-566.23,0.0001807,2]
[373422294,1752997842886,-460.0,0.0001807,2]
[373422295,1752997842896,-869.8,0.0001807,2]
[373422296,1752997842906,-460.0,0.0001807,2]
[373422297,1752997842916,-460.0,0.0001807,2]
[373422298,1752997842925,-460.0,0.0001807,2]
[373422299,1752997842935,-460.0,0.0001807,2]
[373422300,1752997842944,-460.0,0.0001807,2]
[373422301,1752997842954,-460.0,0.0001807,2]
[373422302,1752997842964,-1345.67,0.0001807,2]
[373422303,1752997842973,-460.0,0.0001807,2]
[373422304,1752997842983,-460.0,0.0001807,2]
[373422305,1752997842993,-569.13393687,0.0001807,2]
[373422306,1752997843003,-460.0,0.0001807,2]
[373422307,1752997843012,-460.0,0.0001807,2]
[373422308,1752997843022,-460.0,0.0001807,2]
[373422309,1752997843032,-460.0,0.0001807,2]
[373422310,1752997843042,-460.0,0.0001807,2]
[373422311,1752997843051,-460.0,0.0001807,2]
[373422312,1752997843063,-460.0,0.0001807,2]
[373422313,1752997843073,-460.0,0.0001807,2]
[373422314,1752997843082,-467.52,0.0001807,2]
[373422315,1752997843092,-460.0,0.0001807,2]
[373422316,1752997843102,-336.25482979,0.00018071,2]
[373422317,1752997843111,-460.0,0.00018071,2]
[373422318,1752997843120,-460.0,0.00018071,2]
[373422319,1752997843130,-460.0,0.00018071,2]
[373422320,1752997843140,-236.67,0.00018071,2]
[373422321,1752997843149,-460.0,0.00018071,2]
[373422323,1752997843159,-460.0,0.00018071,2]
[373422324,1752997843169,-461.35,0.00018071,2]
[373422326,1752997843178,-460.0,0.00018071,2]
[373422329,1752997843187,-460.0,0.00018071,2]
[373422331,1752997843197,-460.0,0.00018071,2]
[373422332,1752997843206,-460.0,0.00018071,2]
[373422333,1752997843216,-232.7034171,0.00018071,2]
[373422334,1752997843225,-516.21,0.00018071,2]
[373422335,1752997843235,-460.0,0.00018071,2]
[373422336,1752997843244,-460.0,0.00018071,2]
[373422337,1752997843254,-460.0,0.00018071,2]
[373422338,1752997843263,-460.0,0.00018071,2]
[373422339,1752997843273,-282.35505076,0.00018071,2]
[373422340,1752997843283,-460.0,0.00018071,2]
[373422341,1752997843292,-697.75,0.00018071,2]
[373422342,1752997843302,-646.67,0.00018071,2]
[373422343,1752997843313,-460.0,0.00018071,2]
[373422344,1752997843322,-460.0,0.00018071,2]
[373422345,1752997843331,-460.0,0.00018071,2]
[373422346,1752997843341,-460.0,0.00018071,2]
[373422347,1752997843351,-460.0,0.00018072,2]
[373422348,1752997843360,-3364.79,0.00018072,2]
[373422349,1752997843370,-460.0,0.00018073,2]
[373422350,1752997843380,-570.02,0.00018073,2]
[373422351,1752997843390,-1615.83,0.00018073,2]
[373422353,1752997843401,-460.0,0.00018073,2]
[373422354,1752997843411,-1249.66,0.00018073,2]
[373422355,1752997843420,-3607.11,0.00018073,2]
[373422356,1752997843429,-1033.91,0.00018073,2]
[373422357,1752997843439,-460.0,0.00018073,2]
[373422358,1752997843448,-1000.0,0.00018121,2]
[373422359,1752997843458,-3081.31997858,0.00018176,2]
[373422360,1752997843468,-472.59546105,0.00018255,2]
[373422361,1752997843477,-1000.0,0.00018321,2]
[373422362,1752997843487,-1000.0,0.00018321,2]
[373422363,1752997843496,-1996.24,0.00018343,2]
[373422365,1752997843506,-597.5,0.00018343,2]
[373422366,1752997843516,-460.0,0.00018343,2]
[373422368,1752997843526,-1697.1,0.00018343,2]
[373422370,1752997843536,-460.0,0.00018343,2]
[373422372,1752997843547,-460.0,0.00018343,2]
[373422373,1752997843558,-836.02,0.00018343,2]
[373422374,1752997843568,-460.0,0.00018343,2]
[373422375,1752997843579,-460.0,0.00018343,2]
[373422376,1752997843590,-460.0,0.00018343,2]
[373422377,1752997843600,-1367.43,0.00018343,2]
[373422378,1752997843610,-601.45,0.00018343,2]
[373422379,1752997843621,-460.0,0.00018343,2]
[373422380,1752997843632,-460.0,0.00018343,2]
[373422381,1752997843644,-502.86,0.00018343,2]
[373422382,1752997843655,-460.0,0.00018344,2]
[373422384,1752997843666,-460.0,0.00018344,2]
[373422385,1752997843677,-460.0,0.00018344,2]
[373422386,1752997843698,-460.0,0.00018344,2]
[373422387,1752997843710,-460.0,0.00018344,2]
[373422388,1752997843721,-460.0,0.00018344,2]
[373422389,1752997843732,-3896.49,0.00018344,2]
[373422390,1752997843742,-460.0,0.00018344,2]
[373422391,1752997843753,-460.0,0.00018344,2]
[373422392,1752997843763,-460.0,0.00018344,2]
[373422393,1752997843774,-460.0,0.00018344,2]
[373422394,1752997843788,-460.0,0.00018344,2]
[373422395,1752997843797,-436.03568953,0.00018344,2]
[373422396,1752997843808,-370.171953,0.00018344,2]
[373422397,1752997843818,-460.0,0.00018344,2]
[373422398,1752997843828,-460.0,0.00018344,2]
[373422399,1752997843839,-460.0,0.00018344,2]
[373422400,1752997843848,-460.0,0.00018344,2]
[373422401,1752997843858,-460.0,0.00018344,2]
[373422402,1752997843869,-460.0,0.00018344,2]
[373422403,1752997843880,-460.0,0.00018344,2]
[373422404,1752997843890,-534.57,0.00018344,2]
[373422405,1752997843900,-1466.27,0.00018344,2]
[373422406,1752997843910,-460.0,0.00018344,2]
[373422407,1752997843920,-460.0,0.00018344,2]
[373422408,1752997843930,-460.0,0.00018344,2]
[373422409,1752997843940,-460.0,0.00018344,2]
[373422410,1752997843950,-566.23,0.00018344,2]
[373422411,1752997843960,-460.0,0.00018344,2]
[373422412,1752997843970,-869.8,0.00018344,2]
[373422413,1752997843979,-460.0,0.00018344,2]
[373422414,1752997843989,-460.0,0.00018344,2]
[373422415,1752997843999,-460.0,0.00018344,2]
[373422416,1752997844008,-460.0,0.00018344,2]
[373422417,1752997844018,-460.0,0.00018344,2]
[373422418,1752997844027,-1345.67,0.00018344,2]
[373422419,1752997844037,-460.0,0.00018344,2]
[373422421,1752997844047,-460.0,0.00018344,2]
[373422422,1752997844057,-460.0,0.00018344,2]
[373422423,1752997844066,-460.0,0.00018344,2]
[373422424,1752997844076,-480.02,0.00018344,2]
[373422425,1752997844086,-460.0,0.00018344,2]
[373422426,1752997844095,-528.91608877,0.00018344,2]
[373422427,1752997844105,-460.0,0.00018344,2]
[373422428,1752997844115,-467.52,0.00018344,2]
[373422429,1752997844124,-510.95010467,0.00018344,2]
[373422430,1752997844135,-460.0,0.00018344,2]
[373422431,1752997844144,-460.0,0.00018345,2]
[373422432,1752997844154,-460.0,0.00018345,2]
[373422433,1752997844164,-460.0,0.00018345,2]
[373422434,1752997844174,-460.0,0.00018345,2]
[373422435,1752997844184,-460.0,0.00018345,2]
[373422436,1752997844194,-461.35,0.00018345,2]
[373422437,1752997844203,-460.0,0.00018345,2]
[373422438,1752997844213,-460.0,0.00018345,2]
[373422439,1752997844222,-460.0,0.00018345,2]
[373422440,1752997844232,-516.21,0.00018345,2]
[373422441,1752997844241,-460.0,0.00018345,2]
[373422442,1752997844251,-460.0,0.00018345,2]
[373422443,1752997844260,-460.0,0.00018345,2]
[373422444,1752997844270,-460.0,0.00018345,2]
[373422445,1752997844280,-697.75,0.00018345,2]
[373422446,1752997844290,-646.67,0.00018345,2]
[373422447,1752997844303,-460.0,0.00018345,2]
[373422448,1752997844314,-460.0,0.00018345,2]
[373422449,1752997844324,-460.0,0.00018346,2]
[373422450,1752997844334,-3364.79,0.00018346,2]
[373422451,1752997844344,-460.0,0.00018347,2]
[373422452,1752997844354,-570.02,0.00018347,2]
[373422453,1752997844364,-1615.83,0.00018347,2]
[373422454,1752997844373,-460.0,0.00018347,2]
[373422455,1752997844383,-1249.66,0.00018347,2]
[373422456,1752997844531,-3607.11,0.00018347,2]
[373422457,1752997844540,-1033.91,0.00018347,2]
[373422458,1752997844550,-575.73543737,0.00018347,2]
[373422459,1752997844561,-202.09101035,0.00018356,2]
[373422460,1752997844570,-151.0,0.00018356,2]
[373422461,1752997844579,-500.0,0.00018356,2]
[373422462,1752997844589,-151.0,0.00018356,2]
[373422463,1752997844599,-151.0,0.00018356,2]
[373422464,1752997844608,-151.0,0.00018356,2]
[373422465,1752997844618,-151.0,0.00018356,2]
[373422466,1752997844627,-151.0,0.00018356,2]
[373422467,1752997844637,-151.0,0.00018356,2]
[373422468,1752997844647,-500.0,0.00018356,2]
[373422469,1752997844656,-151.0,0.00018356,2]
[373422470,1752997844666,-537.0,0.00018356,2]
[373422471,1752997844675,-151.0,0.00018356,2]
[373422472,1752997844685,-151.0,0.00018356,2]
[373422473,1752997844694,-151.0,0.00018356,2]
[373422474,1752997844703,-500.0,0.00018356,2]
[373422475,1752997844715,-151.79760084,0.00018356,2]
[373422476,1752997844724,-151.0,0.00018356,2]
[373422477,1752997844734,-151.0,0.00018356,2]
[373422478,1752997844743,-151.0,0.00018356,2]
[373422479,1752997844754,-500.0,0.00018356,2]
[373422480,1752997844765,-151.55334978,0.00018356,2]
[373422481,1752997844775,-151.56801703,0.00018356,2]
[373422482,1752997844786,-151.7306776,0.00018356,2]
[373422483,1752997844798,-151.0,0.00018356,2]
[373422484,1752997844808,-151.0,0.00018356,2]
[373422485,1752997844817,-151.0,0.00018356,2]
[373422486,1752997844826,-500.0,0.00018356,2]
[373422487,1752997844835,-151.0,0.00018356,2]
[373422488,1752997844846,-151.0,0.00018356,2]
[373422489,1752997844855,-151.0,0.00018356,2]
[373422490,1752997844864,-151.0,0.00018356,2]
[373422491,1752997844875,-2140.32196408,0.00018384,2]
[373422492,1752997844885,-3081.31997858,0.00018452,2]
[373422493,1752997844895,-677.34,0.00018609,3]
[373422494,1752997844904,-338.66,0.00018609,3]
[373422495,1752997844913,-1996.24,0.00018617,2]
[373422496,1752997844922,-597.5,0.00018617,2]
[373422497,1752997844931,-460.0,0.00018617,2]
[373422498,1752997844940,-1697.1,0.00018617,2]
[373422499,1752997844949,-221.28,0.00018617,2]
[373422500,1752997844959,-460.0,0.00018617,2]
[373422501,1752997844968,-836.02,0.00018617,2]
[373422502,1752997844978,-460.0,0.00018617,2]
[373422503,1752997844987,-460.0,0.00018617,2]
[373422504,1752997844999,-460.0,0.00018617,2]
[373422505,1752997845009,-1367.43,0.00018617,2]
[373422506,1752997845018,-460.0,0.00018617,2]